Cogmind - Beta 17.1 @@@ ROGUE MODE // 2026.09.07 @ 06:58:13 Player: Somberlain Result: Destroyed by as-62278 with Assembled Rifle Performance ------------- Evolutions (0) 0 Regions Visited (2) 400 Robots Destroyed (21) 105 Value Destroyed (435) 435 Prototype IDs (0) 0 Alien Tech Used (0) 0 Bonus (0) 0 TOTAL SCORE: 940 Bonus ------- None Cogmind --------- Core Integrity 0/250 Matter 290/300 Energy 85/100 System Corruption 3% Temperature Cool (0) Movement Walking (120) Location -10/Mines Parts ------- > --- POWER (1) -------- (None) > --- PROPULSION (2) --- Flexi-carbon Leg > --- UTILITY (2) ------ Signal Interpreter Hacking Suite > --- WEAPON (2) ------- (None) > --- INVENTORY (5) ---- Improved Heat Sink Medium Storage Unit Sensor Array Core Shielding Mining Laser Peak State ------------ > --- POWER ------------ Ion Engine > --- PROPULSION ------- Aluminum Leg Aluminum Leg > --- UTILITY ---------- Medium Storage Unit Hacking Suite > --- WEAPON ----------- Particle Gun Assault Rifle > --- INVENTORY -------- Aluminum Leg Aluminum Leg Aluminum Leg Improved Heat Sink Core Shielding Core Shielding Light Assault Rifle Mining Laser [Rating: 11] Favorites ----------- Power Ion Engine Engine Ion Engine Propulsion Aluminum Leg Leg Aluminum Leg Utility Hacking Suite Storage Medium Storage Unit Processor Signal Interpreter Hackware Hacking Suite Weapon Assault Rifle Energy Gun Particle Gun Ballistic Gun Assault Rifle Special Weapon Mining Laser Build | -11 -10 -10 ------- Run | Yrd Mat Min Slots Evolved . | . . . Power . | . . . Propulsion . | . . . Utility . | . . . Weapon . | . . . Parts Attached 21 | 6 13 2 Power 3 | 1 2 . Engine 3 | 1 2 . Core . | . . . Reactor . | . . . Propulsion 9 | 2 5 2 Treads . | . . . Leg 9 | 2 5 2 Wheel . | . . . Hover . | . . . Flight . | . . . Utility 4 | 1 3 . Device . | . . . Storage 2 | 1 1 . Processor 1 | . 1 . Hackware 1 | . 1 . Protection . | . . . Artifact . | . . . Weapon 5 | 2 3 . Energy Gun 2 | . 2 . Energy Cannon . | . . . Ballistic Gun 2 | 2 . . Ballistic Cannon . | . . . Launcher . | . . . Special Weapon 1 | . 1 . Impact Weapon . | . . . Slashing Weapon . | . . . Piercing Weapon . | . . . Special Melee Weapon . | . . . Unidentified Prototypes . | . . . Parts Lost 6 | . 1 5 Power 1 | . . 1 Propulsion 2 | . . 2 Utility . | . . . Weapon 3 | . 1 2 Highest Loss Streak 3 | . 1 3 To Critical Strikes . | . . . Average Backups 5 | . 5 5 Power . | . . . Propulsion 1 | . 1 . Utility 3 | . 3 4 Weapon 1 | . 1 1 Tool/Special . | . . . Unused Backups 6 | . 3 3 Power . | . . . Propulsion 1 | . 1 . Utility 5 | . 2 3 Weapon . | . . . Tool/Special . | . . . Average Slot Usage (%) 96 | . 98 83 Engine 14 | . 14 14 Leg 27 | . 28 26 Storage 11 | . 13 . Processor 2 | . . 14 Hackware 12 | . 12 14 Energy Gun 10 | . 9 13 Ballistic Gun 14 | . 16 . Special Weapon 1 | . 1 . Peak Build Rating 11 | 6 11 10 Average Rating 9 | 4 9 8 On Entrance 5 | . 6 10 Avg Prop Armor Cover (%) . | . . . Naked Turns . | . . . Heaviest Build 20 | 11 20 9 Greatest Support 20 | 20 20 20 Greatest Overweight (x) 1 | . . 1 Average Overweight (x) . | . . . Largest Inventory Capacity 10 | 8 10 5 Average Capacity 8 | 7 9 5 Most Carried 10 | . 10 5 Average Carried 5 | . 5 5 Final Capacity 8 | 8 5 5 Final Carried 5 | . 5 5 Class Distribution -------------------- 56% | Mutant 43% | Scavenger-Mutant Dominant Class ---------------- Mutant | -10/Materials Mutant | -10/Mines Resources | -11 -10 -10 ----------- Run | Yrd Mat Min Matter Collected 646 | 256 312 78 Remotely . | . . . Salvage Created 647 | . 540 107 Parts 43 | . 36 7 Haulers Intercepted 1 | . 1 . Recyclers Shooed 1 | . 1 . Parts Field Recycled . | . . . Retrieved Matter . | . . . Parts Self-Destructed . | . . . Prevented . | . . . Parts Restored . | . . . Kills | -11 -10 -10 ------- Run | Yrd Mat Min Combat Hostiles Destroyed 15 | . 12 3 Guns 15 | . 12 3 Classes Destroyed 7 | . 7 . Worker 1 | . 1 . Hauler 1 | . 1 . Recycler 1 | . 1 . Operator 1 | . 1 . Watcher 2 | . 2 . Swarmer 7 | . 6 1 Grunt 8 | . 6 2 Best Kill Streak 4 | . 4 1 Combat Bots Only 3 | . 3 1 Max Kills in Single Turn 2 | . 2 1 Gunslinging . | . . . Exploded . | . . . Melee . | . . . Uniques/NPCs Destroyed . | . . . Combat | -11 -10 -10 -------- Run | Yrd Mat Min Hostile Shots Fired 123 | . 59 64 Missed 31 | . 12 19 Hits 92 | . 47 45 Projectile 92 | . 47 45 Critical Strikes 3 | . . 3 Part Disruptions 1 | . . 1 Damage Taken 995 | . 434 561 Core 260 | . 107 153 Absorbed by Shields . | . . . Core Remaining (%) 100 | 100 . . Volleys Fired 69 | . 57 12 Largest 2 | . 2 2 Hottest 105 | . 105 105 Shots Fired 120 | . 99 21 Gun 115 | . 94 21 Cannon . | . . . Launcher . | . . . Special 5 | . 5 . Kinetic 63 | . 63 . Thermal 57 | . 36 21 Explosive . | . . . Electromagnetic . | . . . Robot Hit Streak 8 | . 8 4 Robot Miss Streak 7 | . 7 1 Penetration Max . | . . . Secondary Targets 1 | . 1 . Max Gunslinging Chain 1 | . 1 . Shots Hit Robots 62 | . 49 13 Core Hits 34 | . 25 9 Critical Kills . | . . . Critical Parts Destroyed . | . . . Critical Strikes 1 | . . 1 Burn 1 | . . 1 Melee Attacks . | . . . Impact . | . . . Slashing . | . . . Piercing . | . . . Sneak Attacks . | . . . Combat Hostiles . | . . . Follow-up Attacks . | . . . Damage Inflicted 824 | . 648 176 Guns 811 | . 644 167 Cannons . | . . . Explosions . | . . . Melee . | . . . Ramming 13 | . 4 9 Kinetic 385 | . 385 . Thermal 426 | . 259 167 Explosive . | . . . Electromagnetic . | . . . Impact . | . . . Slashing . | . . . Piercing . | . . . Highest Corruption 3 | . 3 3 Average Corruption 2 | . 2 3 Corruption Purged . | . . . Corruption Blocked . | . . . Effects 25 | . 20 5 Message Errors 8 | . 7 1 Matter Fused 4 | . 3 1 Heat Flow Errors 3 | . 3 . Parts Rejected 1 | . . 1 Data Loss (minor) 6 | . 5 1 Data Loss (major) 1 | . 1 . Misfires 1 | . 1 . Alerts 1 | . . 1 Overload Shots . | . . . Overflow Damage . | . . . Projectiles . | . . . Explosions . | . . . Melee . | . . . Knockbacks . | . . . Impact . | . . . Kinetic . | . . . Secondary . | . . . Self-Inflicted Damage . | . . . Shots . | . . . Rammed . | . . . Targets Rammed 6 | . 1 5 Kicked 6 | . 1 5 Crushed . | . . . Highest Temperature 318 | . 264 318 Average Temperature 92 | . 73 144 Received Heat Transfer 374 | . 99 275 Effects 2 | . 1 1 Energy Bleed 1 | . 1 . Matter Decay 1 | . . 1 Siege Activations . | . . . Martial Activations . | . . . Shielding Activations . | . . . Robots Disrupted . | . . . Combat Hostiles . | . . . Robots Corrupted . | . . . Combat Hostiles . | . . . Parts Fried . | . . . Impact Corruptions . | . . . Robots Melted . | . . . Combat Hostiles . | . . . Parts Melted 1 | . 1 . Heat Transferred 1076 | . 617 459 Parts Sabotaged . | . . . Parts Stolen . | . . . Parts Stripped . | . . . Power Chain Reactions . | . . . Alert | -11 -10 -10 ------- Run | Yrd Mat Min Maximum Alert Level . | . . . Low Security (%) 100 | 100 100 100 Level 1 . | . . . Level 2 . | . . . Level 3 . | . . . Level 4 . | . . . Level 5 . | . . . High Security . | . . . Max Security . | . . . Peak Influence 121 | . 121 57 Initial 17 | . . 17 Average 32 | . 36 20 Influence Increases 425 | . 340 85 Destroy 0b10 Robot/C 300 | . 240 60 Destroy 0b10 Robot/NC 30 | . 30 . Destroy Leader 56 | . 46 10 Successful Hack 7 | . 7 . Disable Machine 15 | . 15 . Destroy Structure 2 | . 2 . Lose Combat Pursuer 15 | . . 15 Influence Decreases 425 | . 294 131 Entered New Map 29 | . . 29 Time Decay 366 | . 284 82 Lost Part 30 | . 10 20 Squads Dispatched 2 | . 2 . Investigation 1 | . 1 . Extermination . | . . . Reinforcement 1 | . 1 . Assault . | . . . Garrison . | . . . Intercept . | . . . Searches Triggered . | . . . Construction Impeded . | . . . Haulers Reinforced . | . . . Active Scanning Responses . | . . . Cargo Convoy Interrupts . | . . . Stealth | -11 -10 -10 --------- Run | Yrd Mat Min Distress Signals 2 | . 2 . Communications Jammed . | . . . Distress Signals . | . . . Times Spotted 29 | . 18 11 Peak Tracking Total 6 | . 3 6 Tactical Retreats 1 | . . 1 Traps | -11 -10 -10 ------- Run | Yrd Mat Min Traps Triggered 3 | . 3 . Indirectly . | . . . Trap Hack Attempts . | . . . Triggered . | . . . Disarmed . | . . . Reprogrammed . | . . . Reused . | . . . Traps Extracted . | . . . Installed . | . . . Triggered . | . . . Machines | -11 -10 -10 ---------- Run | Yrd Mat Min Machines Disabled 1 | . 1 . Max in Single Turn 1 | . 1 . Machines Repaired . | . . . Machines Dismantled . | . . . Machines Sabotaged . | . . . Overloaded Fab Kills . | . . . Hacking | -11 -10 -10 --------- Run | Yrd Mat Min Machines Accessed 7 | . 7 . Terminals 6 | . 6 . Fabricators . | . . . Repair Stations . | . . . Recycling Units 1 | . 1 . Scanalyzers . | . . . Garrison Access . | . . . Total Hacks 21 | . 21 . Successful 2 | . 2 . Failed 19 | . 19 . Catastrophic 3 | . 3 . Database Lockouts . | . . . Manual 20 | . 20 . Terminals 20 | . 20 . Fabricators . | . . . Repair Stations . | . . . Recycling Units 1 | . 1 . Scanalyzers . | . . . Garrison Access . | . . . Terminal Hacks 2 | . 2 . Coupling Status 1 | . 1 . Registered Components 1 | . 1 . Fabricator Hacks . | . . . Repair Station Hacks . | . . . Recycling Unit Hacks . | . . . Scanalyzer . | . . . Garrison Access Hacks . | . . . Unauthorized Hacks . | . . . Terminals . | . . . Fabricators . | . . . Repair Stations . | . . . Recycling Units . | . . . Scanalyzers . | . . . Garrison Access . | . . . Data Cores Recovered . | . . . Used . | . . . Hacking Detections 7 | . 7 . Full Trace Events 1 | . 1 . Feedback Events . | . . . Feedback Blocked . | . . . Robot Schematics Acquired . | . . . Robots Built . | . . . Authchips . | . . . Time . | . . . Total Robot Build Rating . | . . . Part Schematics Acquired . | . . . Parts Built . | . . . Authchips . | . . . Time . | . . . Total Part Build Rating . | . . . Part Studies Acquired . | . . . Parts Repaired . | . . . Time . | . . . Parts Recycled . | . . . Recycled Matter . | . . . Retrieved Matter . | . . . Retrieved Components . | . . . Parts Scanalyzed . | . . . Part Schematics Acquired . | . . . Parts Damaged . | . . . Bothacking | -11 -10 -10 ------------ Run | Yrd Mat Min Used RIF Installer . | . . . Robots Hacked . | . . . Non-combat . | . . . Combat . | . . . Robot Hacks Applied . | . . . Relay Couplers Released . | . . . Fabnet Peak Effective % . | . . . Robots Rewired . | . . . Allies Hacked . | . . . Hacks Repelled . | . . . Allies | -11 -10 -10 -------- Run | Yrd Mat Min Total Allies . | . . . Largest Group . | . . . Highest-Rated Group . | . . . Highest-Rated Ally . | . . . Total Orders . | . . . Ally Attacks . | . . . Total Damage . | . . . Kills . | . . . Allies Corrupted . | . . . Allies Melted . | . . . Intel | -11 -10 -10 ------- Run | Yrd Mat Min Active Infowar (turns) . | . . . Robot Analysis Total . | . . . Derelict Logs Recovered 1 | . . 1 Drone Launches . | . . . Drone Recoveries . | . . . Exploration | -11 -10 -10 ------------- Run | Yrd Mat Min Turns Passed 1636 | 68 1334 234 Spaces Moved 1059 | 50 870 139 Core 8 | 5 . 3 Treads . | . . . Legs 1051 | 45 870 136 Wheels . | . . . Hover . | . . . Flight . | . . . Fastest Speed 50 | 50 120 50 Average Speed 119 | 113 120 118 Slowest Speed 120 | 120 120 120 Overloaded Moves . | . . . Propulsion Burnouts . | . . . Robots Hopped . | . . . Potential Cave-ins . | . . . Cave-ins Triggered . | . . . Exploration Rate (%) 39 | 4 88 27 Regions Visited 2 Branch Regions 1 Pre-discovered Areas . | . . . Known Exits Taken 1 | . 1 . Unknown Exits Taken 1 | 1 . . Scrap Searched . | . . . Spaces Dug 2 | . 2 . Terrain Destroyed 2 | . 2 . Melee . | . . . Projectile 2 | . 2 . AOE . | . . . Terrain Rammed . | . . . Walls Destroyed . | . . . Machines Disabled . | . . . Actions | -11 -10 -10 --------- Run | Yrd Mat Min Total 1298 | 58 1055 185 Wait 112 | 3 84 25 Move 1057 | 49 869 139 Hop . | . . . Pick Up 15 | . 15 . Fast Attach 9 | 6 1 2 Attach 1 | . 1 . Detach . | . . . Swap 15 | . 14 1 Drop 14 | . 13 1 Fire 69 | . 57 12 Melee . | . . . Ram . | . . . Kick 6 | . 1 5 Crush . | . . . Escape Stasis . | . . . Rewire . | . . . Trap . | . . . Miscellaneous . | . . . Route ------- -11/Scrapyard -10/Materials (discovered 5 exits: [*Mat x3] / *Min / *Sub) -10/Mines History --------- Turn | Location | Event 26 | -11/Scrapyard | Discovered new exit (range 15) 69 | -11/Scrapyard | Entered Materials 300 | -10/Materials | Build established: Mutant 687 | -10/Materials | Discovered new exit (range 15) 730 | -10/Materials | Discovered new exit (range 6) 900 | -10/Materials | Discovered new exit (range 16) 1084 | -10/Materials | Discovered new exit (range 16) 1092 | -10/Materials | Build established: Scavenger-Mutant 1298 | -10/Materials | Discovered new exit (range 7) 1341 | -10/Materials | Identified exit to Subcaves 1402 | -10/Materials | Identified exit to Mines 1403 | -10/Materials | Entered Mines 1410 | -10/Mines | Core integrity fell below 50% 1534 | -10/Mines | Assembled infested the area 1539 | -10/Mines | Assisted by a Guerilla fighting off Assembled 1629 | -10/Mines | Core integrity fell below 20% 1637 | -10/Mines | Destroyed by as-62278 with Assembled Rifle Last Messages --------------- come on!" 01539_ E5-GRO(h): "I'll hold them off! Go on ahead or try to find another way!" 01539_ HV Slug penetrates Wall. 01543_ HV Slug penetrates S-10 Pest. 01543_ S-10 Pest suffers critical hit (Destroy). 01543_ S-10 Pest destroyed. 01543_ U-05 Engineer destroyed. 01557_ T-07 Excavator is excavating. 01560_ Kicked T-07 Excavator out of the way. 01568_ System corrupted: IFF burst signal emitted. 01618_ X7JFNECD ZF6EYREG2TM/ 01622_ Kicked as-98431. 01624_ Kicked as-98431 out of the way. 01625_ Aluminum Leg destroyed. 01630_ Kicked as-62278. 01633_ Aluminum Leg destroyed. 01635_ Ion Engine destroyed. 01636_ Acquired Flexi-carbon Leg. Map ----- +----------------------------------------------------+ | ??????????????????????????????????????# ###### | | ??????????????????????????????????????# #????? | | ??????????????????????????????????????# #????? | | ??????????????????????????????????????# #????? | | ???????????????????????###????????????# #????? | | ???????????????????????# ####?????????# #????? | | ???????????????????????##% #?????????# #### " | | ????????????????????????## #?????????# " | | ?????????????????????????# #?????????# #### | | ?????????????????????????# #?????????# #####? | | ????????????????????###### #?????????# #? | | ????????????????????# #?????????##### #? | | ????????????????????# #?????????????# #? | | ????????????????????# ######?????????????# #? | | ??????????????????### #??????????????????# ## | | ??????????????????# % #??????????????????# | | ??????????????????# %###??????????????????# ## | | ??????????????????# #????????????????????# #? | | ??????????????????# #????????????????????# #? | | ??????????????????# #?????????????######## #? | | ???????????# ######%|#?????????????# #? | | ???????????# !aa%#?????????????# #######? | | ???????????########a=#?????????????# #??????? | | ??????????????????# #?????????????# #??????? | | ??????????????????# ##????????????# #??????? | | ??????????????????#|%@###?????????## #??????? | | ?????????????????##%%= #?????????# #??????? | | ?????????????????# %!%= #?????????# ##?????? | | ?????????????????# % #????????## ##????? | | ?????????????????## ##??###### ## | | ??????????????????# #### ## | | ??????????????????## ## | | ???????????????????# | | ???????????????????# | | ???????????????????#a ## ## ## # | | ????????????????? ###### ##? =## | | ?????????????? #???# ####??*%#?# # | | ?????????????#?### ####??# ##????? [*??### | | ?????????????????# ?????# ##??????##=#???? | | ?????????????????#??????## #?????????%#???? | | ?????????????????????????# #?????????=#???? | | ?????????????????????????## ##??????????#???? | | ??????????????????????????# ????????????????? | | ??????????????????????????# ????????????????? | | ??????????????????????????# ????????????????? | | ??????????????????????????? ????????????????? | | ??????????????????????????? ????????????????? | | ?????????????????????????????????????????????? | | ?????????????????????????????????????????????? | | ?????????????????????????????????????????????? | +----------------------------------------------------+ Best States ------------- Heat Dissipation 25 Energy Generation 10 Energy Capacity 250 Matter Stores 300 Matter Capacity 300 Sight Range 16 Terrain Scan Density 10 Evasion (%) 55 Offensive Hacking 10 Item Schematics ----------------- None Robot Schematics ------------------ None Fabricated ------------ Nothing Repaired ---------- Nothing Studied --------- None Alien Tech Used ----------------- None Achievements -------------- None Challenges ------------ None Game ------ Seed MetafieldCoolingDrive Manual? 0 Play Time 00:13:13 Cumulative 77.7 hours Start 2026.09.07 @ 06:47:10 End 2026.09.07 @ 06:58:13 Sessions 1 Manual Loads 0 Difficulty Rogue Special Mode None Game No. 100 Rogue 100 Adventurer 0 Explorer 0 Win Type - Total 0 Types 0/0/0/0/0/0/0/0/0/0 Lore% 39 Gallery% 40 Achievement% 36 Wizard Run 0 Options --------- Layout 1 ASCII 0 Keyboard 0 Movement Mouse Keybinds 0 Fullscreen 2 Font 24/Smallcaps Map View 50x35 Zoom Use 0% Tactical HUD 1 Map Filters NONE Filters NONE Steam 1 RUN: 5c393831-6e90-4a2d-9268-a9152e8507bc